Workbook

Sheet 加权平均汇总表
A1: 附件3
A2: 青岛市园林和林业局2020年市级林业资金项目得分表
A3: 专项资金 | D3: 国家森林城市动态监测项目 | E3: “国土三调”数据林地情况核对调查项目 | F3: 互联网+全民义务植树项目 | G3: 口袋公园示范建设项目 | H3: 林业有害生物防治资金(乡村振兴资金)项目 | I3: 全市节庆氛围营造绿美化项目 | J3: 森林防火监测预警项目 | K3: 森林防火物资储备项目 | L3: 森林防火资金(乡村振兴资金)项目 | M3: 生态定位站运行维护和森林质量提升样地建设及监管项目 | N3: 食用林产品质量安全监管项目 | O3: 市属公园设施维护项目 | P3: 野生动物保护项目 | Q3: 以前年度工程尾款项目 | R3: 园林林业技术研究及推广项目 | S3: 园林林业绿化资金(乡村振兴资金)项目 | T3: 园林和林业有害生物防治项目 | U3: 园林和林业有害生物监测调查项目 | V3: 园林绿化品质标准化建设及提升项目 | W3: 政策性森林火险项目 | X3: 智慧林业信息平台运行与维护项目 | Y3: 园林技校运行维护项 | Z3: 树木保护治理项目 | AA3: 园林林业项目监督监管项目 | AB3: 财力项目 | AF3: 加权得分
A4: 决策 | B4: 项目立项 | C4: 立项依据充分性 | D4: 3 | E4: 3 | F4: 3 | G4: 3 | H4: 3 | I4: 3 | J4: 3 | K4: 3 | L4: 3 | M4: 3 | N4: 3 | O4: 3 | P4: 3 | Q4: 3 | R4: 3 | S4: 3 | T4: 3 | U4: 3 | V4: 3 | W4: 3 | X4: 3 | Y4: 3 | Z4: 3 | AA4: 3 | AB4: 3 | AF4: =SUM(D4:AE4) -> 75.00
C5: 立项程序 规范性 | D5: 3 | E5: 3 | F5: 3 | G5: 3 | H5: 3 | I5: 3 | J5: 3 | K5: 3 | L5: 3 | M5: 3 | N5: 3 | O5: 3 | P5: 3 | Q5: 3 | R5: 3 | S5: 3 | T5: 3 | U5: 3 | V5: 3 | W5: 3 | X5: 3 | Y5: 3 | Z5: 3 | AA5: 3 | AB5: 3 | AF5: =SUM(D5:AE5) -> 75.00
B6: 绩效目标 | C6: 绩效目标 合理性 | D6: 2 | E6: 2 | F6: 2 | G6: 2 | H6: 2 | I6: 2 | J6: 2 | K6: 2 | L6: 3 | M6: 2 | N6: 2 | O6: 2 | P6: 2 | Q6: 2 | R6: 2 | S6: 2 | T6: 2 | U6: 2 | V6: 2 | W6: 2 | X6: 2 | Y6: 2 | Z6: 2 | AA6: 2 | AB6: 0 | AF6: 49.00
C7: 绩效指标 明确性 | D7: 2 | E7: 2 | F7: 2 | G7: 2 | H7: 2 | I7: 2 | J7: 2 | K7: 2 | L7: 2 | M7: 2 | N7: 2 | O7: 2 | P7: 2 | Q7: 2 | R7: 2 | S7: 2 | T7: 2 | U7: 2 | V7: 2 | W7: 2 | X7: 2 | Y7: 2 | Z7: 2 | AA7: 2 | AB7: 0 | AF7: 48.00
B8: 资金投入 | C8: 预算编制 科学性 | D8: 4 | E8: 4 | F8: 4 | G8: 4 | H8: 4 | I8: 4 | J8: 4 | K8: 4 | L8: 4 | M8: 4 | N8: 4 | O8: 4 | P8: 4 | Q8: 4 | R8: 4 | S8: 4 | T8: 4 | U8: 4 | V8: 4 | W8: 4 | X8: 4 | Y8: 4 | Z8: 4 | AA8: 4 | AB8: 4 | AF8: 100.00
C9: 资金分配 合理性 | D9: 4 | E9: 4 | F9: 4 | G9: 4 | H9: 4 | I9: 4 | J9: 4 | K9: 4 | L9: 4 | M9: 4 | N9: 4 | O9: 4 | P9: 4 | Q9: 4 | R9: 4 | S9: 4 | T9: 4 | U9: 4 | V9: 4 | W9: 4 | X9: 4 | Y9: 4 | Z9: 4 | AA9: 4 | AB9: 4 | AF9: 100.00
A10: 过程 | B10: 资金管理 | C10: 资金到位率 | D10: 2 | E10: 2 | F10: 2 | G10: 2 | H10: 2 | I10: 2 | J10: 2 | K10: 2 | L10: 2 | M10: 2 | N10: 2 | O10: 2 | P10: 2 | Q10: 2 | R10: 2 | S10: 2 | T10: 2 | U10: 2 | V10: 2 | W10: 2 | X10: 2 | Y10: 2 | Z10: 2 | AA10: 2 | AB10: 2 | AF10: 50.00
C11: 预算执行率 | D11: 2 | E11: 2 | F11: 2 | G11: 2 | H11: 2 | I11: 1.98 | J11: 1.74 | K11: 1.98 | L11: 2 | M11: 1.8 | N11: 1.87 | O11: 1.8 | P11: 1.98 | Q11: 1.97 | R11: 1.97 | S11: 2 | T11: 1.99 | U11: 2 | V11: 2 | W11: 2 | X11: 2 | Y11: 2 | Z11: 1.92 | AA11: 1.74 | AB11: 2 | AF11: 48.74
C12: 资金使用 合规性 | D12: 4 | E12: 4 | F12: 4 | G12: 4 | H12: 4 | I12: 4 | J12: 4 | K12: 4 | L12: 4 | M12: 4 | N12: 4 | O12: 4 | P12: 4 | Q12: 4 | R12: 4 | S12: 4 | T12: 4 | U12: 4 | V12: 4 | W12: 4 | X12: 4 | Y12: 4 | Z12: 4 | AA12: 4 | AB12: 4 | AF12: 100.00
B13: 组织实施 | C13: 管理制度 健全性 | D13: 6 | E13: 6 | F13: 6 | G13: 6 | H13: 6 | I13: 6 | J13: 6 | K13: 6 | L13: 6 | M13: 6 | N13: 6 | O13: 6 | P13: 6 | Q13: 6 | R13: 6 | S13: 6 | T13: 6 | U13: 6 | V13: 6 | W13: 6 | X13: 6 | Y13: 6 | Z13: 6 | AA13: 6 | AB13: 6 | AF13: 150.00
A14: 过程 | B14: 组织实施 | C14: 制度执行 有效性 | D14: 6 | E14: 6 | F14: 6 | G14: 6 | H14: 6 | I14: 6 | J14: 6 | K14: 6 | L14: 5 | M14: 6 | N14: 6 | O14: 6 | P14: 6 | Q14: 6 | R14: 6 | S14: 6 | T14: 6 | U14: 6 | V14: 6 | W14: 6 | X14: 6 | Y14: 6 | Z14: 6 | AA14: 6 | AB14: 6 | AF14: 149.00
A15: 产出 | B15: 产出数量 | C15: 实际完成率 | D15: 5 | E15: 5 | F15: 5 | G15: 5 | H15: 5 | I15: 5 | J15: 5 | K15: 5 | L15: 5 | M15: 5 | N15: 5 | O15: 5 | P15: 5 | Q15: 5 | R15: 5 | S15: 5 | T15: 5 | U15: 5 | V15: 5 | W15: 5 | X15: 5 | Y15: 5 | Z15: 5 | AA15: 4 | AB15: 4 | AF15: 123.00
C16: 数量变动率 | D16: 5 | E16: 5 | F16: 5 | G16: 5 | H16: 5 | I16: 5 | J16: 5 | K16: 5 | L16: 5 | M16: 5 | N16: 5 | O16: 5 | P16: 5 | Q16: 5 | R16: 5 | S16: 5 | T16: 5 | U16: 5 | V16: 5 | W16: 5 | X16: 5 | Y16: 5 | Z16: 5 | AA16: 4 | AB16: 4 | AF16: 123.00
B17: 产出质量 | C17: 质量达标率 | D17: 5 | E17: 5 | F17: 5 | G17: 5 | H17: 5 | I17: 5 | J17: 5 | K17: 5 | L17: 5 | M17: 5 | N17: 5 | O17: 5 | P17: 5 | Q17: 5 | R17: 5 | S17: 5 | T17: 5 | U17: 5 | V17: 5 | W17: 5 | X17: 5 | Y17: 5 | Z17: 5 | AA17: 5 | AB17: 5 | AF17: 125.00
B18: 产出时效 | C18: 完成及时率 | D18: 5 | E18: 5 | F18: 5 | G18: 5 | H18: 5 | I18: 5 | J18: 5 | K18: 5 | L18: 5 | M18: 5 | N18: 5 | O18: 5 | P18: 5 | Q18: 5 | R18: 5 | S18: 5 | T18: 5 | U18: 5 | V18: 5 | W18: 5 | X18: 5 | Y18: 5 | Z18: 5 | AA18: 5 | AB18: 5 | AF18: 125.00
B19: 产出成本 | C19: 成本节约率 | D19: 5 | E19: 5 | F19: 5 | G19: 5 | H19: 5 | I19: 5 | J19: 5 | K19: 5 | L19: 5 | M19: 5 | N19: 5 | O19: 5 | P19: 5 | Q19: 5 | R19: 5 | S19: 5 | T19: 5 | U19: 5 | V19: 5 | W19: 5 | X19: 5 | Y19: 5 | Z19: 5 | AA19: 5 | AB19: 5 | AF19: 125.00
B20: 项目效益 | C20: 经济效益 | AF20: 0.00
A21: 效益 | C21: 社会效益 | D21: 23 | E21: 30 | F21: 23 | G21: 22 | H21: 10 | I21: 23 | J21: 12 | K21: 23 | L21: 23 | M21: 27 | N21: 23 | O21: 22 | P21: 11 | Q21: 10 | R21: 12 | S21: 12 | T21: 10 | U21: 13 | V21: 21 | W21: 12 | X21: 24 | Y21: 22 | Z21: 12 | AA21: 11 | AB21: 24 | AF21: 455.00
C22: 生态效益 | H22: 12 | J22: 13 | P22: 15 | Q22: 13 | R22: 11 | S22: 11 | T22: 11 | U22: 10 | W22: 11 | Z22: 12 | AA22: 10 | AF22: 129.00
B23: 可持续性影响 | C23: 项目发展机制可持续性 | D23: 2 | E23: 2 | F23: 2 | G23: 2 | H23: 2 | I23: 2 | J23: 2 | K23: 2 | L23: 2 | M23: 5 | N23: 2 | O23: 2 | P23: 5 | Q23: 2 | R23: 2 | S23: 2 | T23: 2 | U23: 2 | V23: 2 | W23: 2 | X23: 2 | Y23: 2 | Z23: 2 | AA23: 2 | AB23: 2 | AF23: 56.00
B24: 满意度 | C24: 满意度 | D24: 8 | F24: 8 | G24: 7 | H24: 7 | I24: 7 | J24: 7 | K24: 7.5 | L24: 7.5 | N24: 7 | O24: 7 | Q24: 7 | R24: 8 | S24: 7 | T24: 7 | U24: 7.5 | V24: 7 | W24: 7 | X24: 7 | Y24: 7 | Z24: 7 | AA24: 7 | AB24: 8 | AF24: =SUM(AF4:AF23) -> 2205.74
A25: 合计 | D25: =SUM(D4:D24) -> 96.00 | E25: 95.00 | F25: 96.00 | G25: 94.00 | H25: 94.00 | I25: 94.98 | J25: 96.74 | K25: 95.48 | L25: 95.50 | M25: 94.80 | N25: 94.87 | O25: 93.80 | P25: 93.98 | Q25: 94.97 | R25: 95.97 | S25: 95.00 | T25: 92.99 | U25: 95.50 | V25: 93.00 | W25: 95.00 | X25: 96.00 | Y25: 94.00 | Z25: 95.92 | AA25: 90.74 | AB25: 91.00 | AF25: =SUM(AF4:AF24) -> 4411.48
A26: 得分 | D26: =D25*D29 -> 0.22 | E26: =E25*E29 -> 0.33 | F26: 0.64 | G26: 1.67 | H26: 6.57 | I26: 1.44 | J26: 2.18 | K26: 0.99 | L26: 3.79 | M26: 0.27 | N26: 0.12 | O26: 47.70 | P26: 0.27 | Q26: 0.14 | R26: 0.32 | S26: 11.21 | T26: 6.36 | U26: 0.29 | V26: 0.05 | W26: 1.35 | X26: 0.38 | Y26: 1.96 | Z26: 0.58 | AA26: 3.55 | AB26: 1.63 | AF26: =SUM(D26:AE26) -> 93.99
D28: 40 | E28: 60 | F28: 116 | G28: 309.45 | H28: 1220 | I28: 264 | J28: 393.6 | K28: 181.2 | L28: 692.2 | M28: 50 | N28: 22 | O28: 8880.24 | P28: 50 | Q28: 26 | R28: 59 | S28: 2060 | T28: 1194 | U28: 53 | V28: 10 | W28: 247.95 | X28: 70 | Y28: 364 | Z28: 105 | AA28: 682.31 | AB28: 313.2 | AF28: =SUM(D28:AE28) -> 17463.15
D29: =D28/$AF$28 -> 0.00 | E29: =E28/$AF$28 -> 0.00 | F29: 0.01 | G29: 0.02 | H29: 0.07 | I29: 0.02 | J29: 0.02 | K29: 0.01 | L29: 0.04 | M29: 0.00 | N29: 0.00 | O29: 0.51 | P29: 0.00 | Q29: 0.00 | R29: 0.00 | S29: 0.12 | T29: 0.07 | U29: 0.00 | V29: 0.00 | W29: 0.01 | X29: 0.00 | Y29: 0.02 | Z29: 0.01 | AA29: 0.04 | AB29: 0.02
A31: 决策 | B31: 项目立项 | C31: 立项依据充分性 | D31: =D4*$D$29 -> 0.01 | E31: =$E$29*E4 -> 0.01 | F31: =$F$29*F4 -> 0.02 | G31: =$G$29*G4 -> 0.05 | H31: =$H$29*H4 -> 0.21 | I31: =$I$29*I4 -> 0.05 | J31: =J4*$J$29 -> 0.07 | K31: =$K$29*K4 -> 0.03 | L31: =$L$29*L4 -> 0.12 | M31: =$M$29*M4 -> 0.01 | N31: =$N$29*N4 -> 0.00 | O31: =$O$29*O4 -> 1.53 | P31: =$P$29*P4 -> 0.01 | Q31: =$Q$29*Q4 -> 0.00 | R31: =$R$29*R4 -> 0.01 | S31: =$S$29*S4 -> 0.35 | T31: =$T$29*T4 -> 0.21 | U31: =$U$29*U4 -> 0.01 | V31: =$V$29*V4 -> 0.00 | W31: =$W$29*W4 -> 0.04 | X31: =$X$29*X4 -> 0.01 | Y31: =$Y$29*Y4 -> 0.06 | Z31: =$Z$29*Z4 -> 0.02 | AA31: =$AA$29*AA4 -> 0.12 | AB31: =$AB$29*AB4 -> 0.05 | AF31: =SUM(D31:AB31) -> 3.00
C32: 立项程序 规范性 | D32: =D5*$D$29 -> 0.01 | E32: =$E$29*E5 -> 0.01 | F32: =$F$29*F5 -> 0.02 | G32: =$G$29*G5 -> 0.05 | H32: =$H$29*H5 -> 0.21 | I32: =$I$29*I5 -> 0.05 | J32: =J5*$J$29 -> 0.07 | K32: =$K$29*K5 -> 0.03 | L32: =$L$29*L5 -> 0.12 | M32: =$M$29*M5 -> 0.01 | N32: =$N$29*N5 -> 0.00 | O32: =$O$29*O5 -> 1.53 | P32: =$P$29*P5 -> 0.01 | Q32: =$Q$29*Q5 -> 0.00 | R32: =$R$29*R5 -> 0.01 | S32: =$S$29*S5 -> 0.35 | T32: =$T$29*T5 -> 0.21 | U32: =$U$29*U5 -> 0.01 | V32: =$V$29*V5 -> 0.00 | W32: =$W$29*W5 -> 0.04 | X32: =$X$29*X5 -> 0.01 | Y32: =$Y$29*Y5 -> 0.06 | Z32: =$Z$29*Z5 -> 0.02 | AA32: =$AA$29*AA5 -> 0.12 | AB32: =$AB$29*AB5 -> 0.05 | AF32: =SUM(D32:AB32) -> 3.00
B33: 绩效目标 | C33: 绩效目标 合理性 | D33: 0.00 | E33: 0.01 | F33: 0.01 | G33: 0.04 | H33: 0.14 | I33: 0.03 | J33: 0.05 | K33: 0.02 | L33: 0.12 | M33: 0.01 | N33: 0.00 | O33: 1.02 | P33: 0.01 | Q33: 0.00 | R33: 0.01 | S33: 0.24 | T33: 0.14 | U33: 0.01 | V33: 0.00 | W33: 0.03 | X33: 0.01 | Y33: 0.04 | Z33: 0.01 | AA33: 0.08 | AB33: 0.00 | AF33: 2.00
C34: 绩效指标 明确性 | D34: 0.00 | E34: 0.01 | F34: 0.01 | G34: 0.04 | H34: 0.14 | I34: 0.03 | J34: 0.05 | K34: 0.02 | L34: 0.08 | M34: 0.01 | N34: 0.00 | O34: 1.02 | P34: 0.01 | Q34: 0.00 | R34: 0.01 | S34: 0.24 | T34: 0.14 | U34: 0.01 | V34: 0.00 | W34: 0.03 | X34: 0.01 | Y34: 0.04 | Z34: 0.01 | AA34: 0.08 | AB34: 0.00 | AF34: 1.96
B35: 资金投入 | C35: 预算编制 科学性 | D35: 0.01 | E35: 0.01 | F35: 0.03 | G35: 0.07 | H35: 0.28 | I35: 0.06 | J35: 0.09 | K35: 0.04 | L35: 0.16 | M35: 0.01 | N35: 0.01 | O35: 2.03 | P35: 0.01 | Q35: 0.01 | R35: 0.01 | S35: 0.47 | T35: 0.27 | U35: 0.01 | V35: 0.00 | W35: 0.06 | X35: 0.02 | Y35: 0.08 | Z35: 0.02 | AA35: 0.16 | AB35: 0.07 | AF35: 4.00
C36: 资金分配 合理性 | D36: 0.01 | E36: 0.01 | F36: 0.03 | G36: 0.07 | H36: 0.28 | I36: 0.06 | J36: 0.09 | K36: 0.04 | L36: 0.16 | M36: 0.01 | N36: 0.01 | O36: 2.03 | P36: 0.01 | Q36: 0.01 | R36: 0.01 | S36: 0.47 | T36: 0.27 | U36: 0.01 | V36: 0.00 | W36: 0.06 | X36: 0.02 | Y36: 0.08 | Z36: 0.02 | AA36: 0.16 | AB36: 0.07 | AF36: 4.00
A37: 过程 | B37: 资金管理 | C37: 资金到位率 | D37: 0.00 | E37: 0.01 | F37: 0.01 | G37: 0.04 | H37: 0.14 | I37: 0.03 | J37: 0.05 | K37: 0.02 | L37: 0.08 | M37: 0.01 | N37: 0.00 | O37: 1.02 | P37: 0.01 | Q37: 0.00 | R37: 0.01 | S37: 0.24 | T37: 0.14 | U37: 0.01 | V37: 0.00 | W37: 0.03 | X37: 0.01 | Y37: 0.04 | Z37: 0.01 | AA37: 0.08 | AB37: 0.04 | AF37: 2.00
C38: 预算执行率 | D38: 0.00 | E38: 0.01 | F38: 0.01 | G38: 0.04 | H38: 0.14 | I38: 0.03 | J38: 0.04 | K38: 0.02 | L38: 0.08 | M38: 0.01 | N38: 0.00 | O38: 0.92 | P38: 0.01 | Q38: 0.00 | R38: 0.01 | S38: 0.24 | T38: 0.14 | U38: 0.01 | V38: 0.00 | W38: 0.03 | X38: 0.01 | Y38: 0.04 | Z38: 0.01 | AA38: 0.07 | AB38: 0.04 | AF38: 1.88
C39: 资金使用 合规性 | D39: 0.01 | E39: 0.01 | F39: 0.03 | G39: 0.07 | H39: 0.28 | I39: 0.06 | J39: 0.09 | K39: 0.04 | L39: 0.16 | M39: 0.01 | N39: 0.01 | O39: 2.03 | P39: 0.01 | Q39: 0.01 | R39: 0.01 | S39: 0.47 | T39: 0.27 | U39: 0.01 | V39: 0.00 | W39: 0.06 | X39: 0.02 | Y39: 0.08 | Z39: 0.02 | AA39: 0.16 | AB39: 0.07 | AF39: 4.00
B40: 组织实施 | C40: 管理制度 健全性 | D40: 0.01 | E40: 0.02 | F40: 0.04 | G40: 0.11 | H40: 0.42 | I40: 0.09 | J40: 0.14 | K40: 0.06 | L40: 0.24 | M40: 0.02 | N40: 0.01 | O40: 3.05 | P40: 0.02 | Q40: 0.01 | R40: 0.02 | S40: 0.71 | T40: 0.41 | U40: 0.02 | V40: 0.00 | W40: 0.09 | X40: 0.02 | Y40: 0.13 | Z40: 0.04 | AA40: 0.23 | AB40: 0.11 | AF40: 6.00
A41: 过程 | B41: 组织实施 | C41: 制度执行 有效性 | D41: 0.01 | E41: 0.02 | F41: 0.04 | G41: 0.11 | H41: 0.42 | I41: 0.09 | J41: 0.14 | K41: 0.06 | L41: 0.20 | M41: 0.02 | N41: 0.01 | O41: 3.05 | P41: 0.02 | Q41: 0.01 | R41: 0.02 | S41: 0.71 | T41: 0.41 | U41: 0.02 | V41: 0.00 | W41: 0.09 | X41: 0.02 | Y41: 0.13 | Z41: 0.04 | AA41: 0.23 | AB41: 0.11 | AF41: 5.96
A42: 产出 | B42: 产出数量 | C42: 实际完成率 | D42: 0.01 | E42: 0.02 | F42: 0.03 | G42: 0.09 | H42: 0.35 | I42: 0.08 | J42: 0.11 | K42: 0.05 | L42: 0.20 | M42: 0.01 | N42: 0.01 | O42: 2.54 | P42: 0.01 | Q42: 0.01 | R42: 0.02 | S42: 0.59 | T42: 0.34 | U42: 0.02 | V42: 0.00 | W42: 0.07 | X42: 0.02 | Y42: 0.10 | Z42: 0.03 | AA42: 0.16 | AB42: 0.07 | AF42: 4.94
C43: 数量变动率 | D43: 0.01 | E43: 0.02 | F43: 0.03 | G43: 0.09 | H43: 0.35 | I43: 0.08 | J43: 0.11 | K43: 0.05 | L43: 0.20 | M43: 0.01 | N43: 0.01 | O43: 2.54 | P43: 0.01 | Q43: 0.01 | R43: 0.02 | S43: 0.59 | T43: 0.34 | U43: 0.02 | V43: 0.00 | W43: 0.07 | X43: 0.02 | Y43: 0.10 | Z43: 0.03 | AA43: 0.16 | AB43: 0.07 | AF43: 4.94
B44: 产出质量 | C44: 质量达标率 | D44: 0.01 | E44: 0.02 | F44: 0.03 | G44: 0.09 | H44: 0.35 | I44: 0.08 | J44: 0.11 | K44: 0.05 | L44: 0.20 | M44: 0.01 | N44: 0.01 | O44: 2.54 | P44: 0.01 | Q44: 0.01 | R44: 0.02 | S44: 0.59 | T44: 0.34 | U44: 0.02 | V44: 0.00 | W44: 0.07 | X44: 0.02 | Y44: 0.10 | Z44: 0.03 | AA44: 0.20 | AB44: 0.09 | AF44: 5.00
B45: 产出时效 | C45: 完成及时率 | D45: 0.01 | E45: 0.02 | F45: 0.03 | G45: 0.09 | H45: 0.35 | I45: 0.08 | J45: 0.11 | K45: 0.05 | L45: 0.20 | M45: 0.01 | N45: 0.01 | O45: 2.54 | P45: 0.01 | Q45: 0.01 | R45: 0.02 | S45: 0.59 | T45: 0.34 | U45: 0.02 | V45: 0.00 | W45: 0.07 | X45: 0.02 | Y45: 0.10 | Z45: 0.03 | AA45: 0.20 | AB45: 0.09 | AF45: 5.00
B46: 产出成本 | C46: 成本节约率 | D46: 0.01 | E46: 0.02 | F46: 0.03 | G46: 0.09 | H46: 0.35 | I46: 0.08 | J46: 0.11 | K46: 0.05 | L46: 0.20 | M46: 0.01 | N46: 0.01 | O46: 2.54 | P46: 0.01 | Q46: 0.01 | R46: 0.02 | S46: 0.59 | T46: 0.34 | U46: 0.02 | V46: 0.00 | W46: 0.07 | X46: 0.02 | Y46: 0.10 | Z46: 0.03 | AA46: 0.20 | AB46: 0.09 | AF46: 5.00
B47: 项目效益 | C47: 经济效益 | D47: 0.00 | E47: 0.00 | F47: 0.00 | G47: 0.00 | H47: 0.00 | I47: 0.00 | J47: 0.00 | K47: 0.00 | L47: 0.00 | M47: 0.00 | N47: 0.00 | O47: 0.00 | P47: 0.00 | Q47: 0.00 | R47: 0.00 | S47: 0.00 | T47: 0.00 | U47: 0.00 | V47: 0.00 | W47: 0.00 | X47: 0.00 | Y47: 0.00 | Z47: 0.00 | AA47: 0.00 | AB47: 0.00 | AF47: 0.00
A48: 效益 | C48: 社会效益 | D48: 0.05 | E48: 0.10 | F48: 0.15 | G48: 0.39 | H48: 0.70 | I48: 0.35 | J48: 0.27 | K48: 0.24 | L48: 0.91 | M48: 0.08 | N48: 0.03 | O48: 11.19 | P48: 0.03 | Q48: 0.01 | R48: 0.04 | S48: 1.42 | T48: 0.68 | U48: 0.04 | V48: 0.01 | W48: 0.17 | X48: 0.10 | Y48: 0.46 | Z48: 0.07 | AA48: 0.43 | AB48: 0.43 | AF48: 18.35
C49: 生态效益 | D49: 0.00 | E49: 0.00 | F49: 0.00 | G49: 0.00 | H49: 0.84 | I49: 0.00 | J49: 0.29 | K49: 0.00 | L49: 0.00 | M49: 0.00 | N49: 0.00 | O49: 0.00 | P49: 0.04 | Q49: 0.02 | R49: 0.04 | S49: 1.30 | T49: 0.75 | U49: 0.03 | V49: 0.00 | W49: 0.16 | X49: 0.00 | Y49: 0.00 | Z49: 0.07 | AA49: 0.39 | AB49: 0.00 | AF49: 3.93
B50: 可持续性影响 | C50: 项目发展机制可持续性 | D50: 0.00 | E50: 0.01 | F50: 0.01 | G50: 0.04 | H50: 0.14 | I50: 0.03 | J50: 0.05 | K50: 0.02 | L50: 0.08 | M50: 0.01 | N50: 0.00 | O50: 1.02 | P50: 0.01 | Q50: 0.00 | R50: 0.01 | S50: 0.24 | T50: 0.14 | U50: 0.01 | V50: 0.00 | W50: 0.03 | X50: 0.01 | Y50: 0.04 | Z50: 0.01 | AA50: 0.08 | AB50: 0.04 | AF50: 2.02
B51: 满意度 | C51: 满意度 | D51: 0.02 | E51: 0.00 | F51: 0.05 | G51: 0.12 | H51: 0.49 | I51: 0.11 | J51: 0.16 | K51: 0.08 | L51: 0.30 | M51: 0.00 | N51: 0.01 | O51: 3.56 | P51: 0.00 | Q51: 0.01 | R51: 0.03 | S51: 0.83 | T51: 0.48 | U51: 0.02 | V51: 0.00 | W51: 0.10 | X51: 0.03 | Y51: 0.15 | Z51: 0.04 | AA51: 0.27 | AB51: 0.14 | AF51: 6.99
A52: 合计 | D52: 0.22 | E52: 0.33 | F52: 0.64 | G52: 1.67 | H52: 6.57 | I52: 1.44 | J52: 2.18 | K52: 0.99 | L52: 3.79 | M52: 0.27 | N52: 0.12 | O52: 47.70 | P52: 0.27 | Q52: 0.14 | R52: 0.32 | S52: 11.21 | T52: 6.36 | U52: 0.29 | V52: 0.05 | W52: 1.35 | X52: 0.38 | Y52: 1.96 | Z52: 0.58 | AA52: 3.55 | AB52: 1.63 | AF52: 93.99
A53: 得分 | D53: 0.00 | E53: 0.00 | F53: 0.00 | G53: 0.03 | H53: 0.46 | I53: 0.02 | J53: 0.05 | K53: 0.01

Sheet Sheet1 (hidden)
A1: 国家森林城市动态监测项目 | B1: “国土三调”数据林地情况核对调查项目 | C1: 互联网+全民义务植树项目 | D1: 口袋公园示范建设项目 | E1: 林业有害生物防治资金(乡村振兴资金)项目 | F1: 全市节庆氛围营造绿美化项目 | G1: 森林防火监测预警项目 | H1: 森林防火物资储备项目 | I1: 森林防火资金(乡村振兴资金)项目 | J1: 生态定位站运行维护和森林质量提升样地建设及监管项目 | K1: 食用林产品质量安全监管项目 | L1: 市属公园设施维护项目 | M1: 野生动物保护项目 | N1: 以前年度工程尾款项目 | O1: 园林林业技术研究及推广项目 | P1: 园林林业绿化资金(乡村振兴资金)项目 | Q1: 园林和林业有害生物防治项目 | R1: 园林和林业有害生物监测调查项目 | S1: 园林绿化品质标准化建设及提升项目 | T1: 政策性森林火险项目 | U1: 智慧林业信息平台运行与维护项目 | V1: 园林技校运行维护项 | W1: 树木保护治理项目 | X1: 园林林业项目监督监管项目 | Y1: 财力项目
A2: 96 | B2: 95 | C2: 96 | D2: 94 | E2: 94 | F2: 94.98 | G2: 96.74 | H2: 95.48 | I2: 95.5 | J2: 94.8 | K2: 94.87 | L2: 93.8 | M2: 93.98 | N2: 94.97 | O2: 95.97 | P2: 95 | Q2: 92.99 | R2: 95.5 | S2: 93 | T2: 95 | U2: 96 | V2: 94 | W2: 95.92 | X2: 90.74 | Y2: 91

Sheet Sheet2 (hidden)
A2: 森林防火监测预警项目 | B2: 96.74
A3: 国家森林城市动态监测项目 | B3: 96
A4: 互联网+全民义务植树项目 | B4: 96
A5: 智慧林业信息平台运行与维护项目 | B5: 96
A6: 园林林业技术研究及推广项目 | B6: 95.97
A7: 树木保护治理项目 | B7: 95.92
A8: 森林防火资金(乡村振兴资金)项目 | B8: 95.5
A9: 园林和林业有害生物监测调查项目 | B9: 95.5
A10: 森林防火物资储备项目 | B10: 95.48
A11: “国土三调”数据林地情况核对调查项目 | B11: 95
A12: 园林林业绿化资金(乡村振兴资金)项目 | B12: 95
A13: 政策性森林火险项目 | B13: 95
A14: 全市节庆氛围营造绿美化项目 | B14: 94.98
A15: 以前年度工程尾款项目 | B15: 94.97
A16: 食用林产品质量安全监管项目 | B16: 94.87
A17: 生态定位站运行维护和森林质量提升样地建设及监管项目 | B17: 94.8
A18: 口袋公园示范建设项目 | B18: 94
A19: 林业有害生物防治资金(乡村振兴资金)项目 | B19: 94
A20: 园林技校运行维护项 | B20: 94
A21: 野生动物保护项目 | B21: 93.98
A22: 市属公园设施维护项目 | B22: 93.8
A23: 园林绿化品质标准化建设及提升项目 | B23: 93
A24: 园林和林业有害生物防治项目 | B24: 92.99
A25: 财力项目 | B25: 91
A26: 园林林业项目监督监管项目 | B26: 90.74
